bitfinex/quotes_BTCUSD_20240613
["timestamp","ask_amount","ask_price","bid_price","bid_amount"]
[1718257231420,0.16493316,67624.0,67623.0,0.15071155]
[1718257231638,0.16493316,67624.0,67623.0,0.028]
[1718257231843,0.16493316,67624.0,67623.0,0.15071068]
[1718257235432,0.16493316,67624.0,67623.0,0.15070993]
[1718257236027,0.16493316,67624.0,67623.0,0.02799982]
[1718257236835,0.16493316,67624.0,67623.0,0.15071222]
[1718257238277,0.23643316,67624.0,67623.0,0.02799982]
[1718257238573,0.26016248,67624.0,67623.0,0.02799982]
[1718257238901,0.23643316,67624.0,67623.0,0.02799982]
[1718257239444,0.23643316,67624.0,67623.0,0.014]
[1718257240246,0.25643316,67624.0,67623.0,0.014]
[1718257240871,0.25643316,67624.0,67621.0,0.000946]
[1718257240872,0.02,67622.0,67621.0,0.000946]
[1718257241078,0.1632,67622.0,67621.0,0.000946]
[1718257241279,0.17791855,67622.0,67621.0,0.000946]
[1718257241486,0.20370641,67622.0,67621.0,0.000946]
[1718257243262,0.20570641,67622.0,67621.0,0.000946]
[1718257244101,0.51256935,67622.0,67621.0,0.000946]
[1718257244507,0.51356935,67622.0,67621.0,0.000946]
[1718257244718,0.65788928,67622.0,67621.0,0.000946]
[1718257245507,0.75788928,67622.0,67621.0,0.000946]
[1718257245751,0.65788928,67622.0,67621.0,0.000946]
[1718257245955,0.68086036,67622.0,67621.0,0.000946]
[1718257246158,0.6808719,67622.0,67621.0,0.000946]
[1718257246906,0.73452258,67622.0,67621.0,0.000946]
[1718257247323,0.6808719,67622.0,67621.0,0.000946]
[1718257249564,0.65790082,67622.0,67621.0,0.000946]
[1718257250930,0.35102634,67622.0,67621.0,0.000946]
[1718257251339,0.73005912,67622.0,67621.0,0.000946]
[1718257251519,0.75306449,67622.0,67621.0,0.000946]
[1718257251898,0.73005912,67622.0,67621.0,0.000946]
[1718257254271,0.83005912,67622.0,67621.0,0.000946]
[1718257254477,0.73005912,67622.0,67621.0,0.000946]
[1718257254962,0.70427126,67622.0,67621.0,0.000946]
[1718257255507,0.41498176,67622.0,67621.0,0.000946]
[1718257255920,0.39739844,67622.0,67621.0,0.000946]
[1718257256321,0.70427182,67622.0,67621.0,0.000946]
[1718257258258,0.721639,67622.0,67621.0,0.000946]
[1718257258461,0.41476562,67622.0,67621.0,0.000946]
[1718257259286,0.01771855,67622.0,67621.0,0.145846]
[1718257260525,0.01571855,67622.0,67621.0,0.145846]
[1718257260743,0.01471855,67622.0,67621.0,0.145846]
[1718257260963,0.01471855,67622.0,67621.0,0.147846]
[1718257261187,0.01471855,67622.0,67621.0,0.149846]
[1718257261382,0.00846,67624.0,67621.0,0.105646]
[1718257261572,0.00846,67624.0,67623.0,0.02]
[1718257261800,0.00846,67624.0,67623.0,0.23]
[1718257262021,0.00846,67624.0,67623.0,0.48023477]
[1718257262709,0.00846,67624.0,67623.0,0.54157857]
[1718257263382,0.00846,67624.0,67623.0,0.54157843]
[1718257263604,0.00846,67624.0,67623.0,0.54966359]
[1718257264500,0.00846,67624.0,67623.0,0.56366359]
[1718257264713,0.00846,67624.0,67623.0,0.54966359]
[1718257265123,0.01874398,67624.0,67623.0,0.55231427]
[1718257265533,0.01874398,67624.0,67623.0,0.57531519]
[1718257265991,0.01874398,67624.0,67623.0,0.49216451]
[1718257266193,0.01874398,67624.0,67623.0,0.56366451]
[1718257266401,0.01874398,67624.0,67623.0,0.54966451]
[1718257266598,0.01874398,67624.0,67623.0,0.56366451]
[1718257267021,0.01874398,67624.0,67623.0,0.50231993]
[1718257267271,0.01874398,67624.0,67623.0,0.48831993]
[1718257267471,0.01874398,67624.0,67623.0,0.50231993]
[1718257268636,0.01874398,67624.0,67623.0,0.48231993]
[1718257269873,0.01874398,67624.0,67623.0,0.50231993]
[1718257270319,0.02321757,67624.0,67623.0,0.50231993]
[1718257272499,0.02321757,67624.0,67623.0,0.6431431]
[1718257272711,0.02321757,67624.0,67623.0,0.5431431]
[1718257272940,0.02321757,67624.0,67623.0,0.61530306]
[1718257273194,0.02321757,67624.0,67623.0,0.67664317]
[1718257273405,0.02321757,67624.0,67623.0,0.64864317]
[1718257273853,0.02321757,67624.0,67623.0,0.67664317]
[1718257274500,0.02321757,67624.0,67623.0,0.77664317]
[1718257274735,0.02321757,67624.0,67623.0,0.67664317]
[1718257275408,0.02321757,67624.0,67623.0,0.60448321]
[1718257275853,0.02321757,67624.0,67623.0,0.59048321]
[1718257276076,0.02321757,67624.0,67623.0,0.5291431]
[1718257276296,0.02321757,67624.0,67623.0,0.5431431]
[1718257276728,0.02321757,67624.0,67623.0,0.5291431]
[1718257277172,0.02321757,67624.0,67623.0,0.5431431]
[1718257277398,0.02321757,67624.0,67623.0,0.4486431]
[1718257277895,0.02321757,67624.0,67623.0,0.14582317]
[1718257278149,0.02321757,67624.0,67623.0,0.028]
[1718257278361,0.02321757,67624.0,67623.0,0.128]
[1718257279059,0.02321757,67624.0,67623.0,0.114]
[1718257279282,0.02321757,67624.0,67623.0,0.028]
[1718257279456,0.02321757,67624.0,67623.0,0.014]
[1718257279859,0.02321757,67624.0,67623.0,0.028]
[1718257281220,0.02321757,67624.0,67623.0,0.048]
[1718257284027,0.02321757,67624.0,67623.0,0.028]
[1718257287483,0.02321757,67624.0,67623.0,0.048]
[1718257289488,0.02321757,67624.0,67623.0,0.1252]
[1718257289691,0.02321757,67624.0,67623.0,0.2252]
[1718257292749,0.02295256,67624.0,67623.0,0.2252]
[1718257293108,0.02295256,67624.0,67623.0,0.36951993]
[1718257296689,0.02295256,67624.0,67623.0,0.37046593]
[1718257297058,0.02295256,67624.0,67623.0,0.38838498]
[1718257300942,0.02295256,67624.0,67623.0,0.36838498]
[1718257303716,0.02295256,67624.0,67623.0,0.41214291]
[1718257304335,0.02295256,67624.0,67623.0,0.54671695]
[1718257305421,0.02295256,67624.0,67623.0,0.67677458]
[1718257306190,0.02295256,67624.0,67623.0,0.56671695]
[1718257307104,0.02295256,67624.0,67623.0,0.54671695]
[1718257307321,0.02295256,67624.0,67623.0,0.46951695]
[1718257307565,0.02295256,67624.0,67623.0,0.57958016]
[1718257307969,0.02295256,67624.0,67623.0,0.56166111]
[1718257309401,0.02295256,67624.0,67623.0,0.57940717]
[1718257310600,0.02295256,67624.0,67623.0,0.58058383]
[1718257316156,0.02295256,67624.0,67623.0,0.58066628]
[1718257317048,0.02295256,67624.0,67623.0,0.5586578]
[1718257318629,0.02295256,67624.0,67623.0,0.56058644]
[1718257320801,0.02295256,67624.0,67623.0,0.54284038]
[1718257321381,0.02295256,67624.0,67623.0,0.66553925]
[1718257321586,0.02295256,67624.0,67623.0,0.52121932]
[1718257321784,0.02295256,67624.0,67623.0,0.4331737]
[1718257321986,0.02295256,67624.0,67623.0,0.29567869]
[1718257322218,0.10205256,67624.0,67623.0,0.25164487]
[1718257322392,0.16515256,67624.0,67623.0,0.25164487]
[1718257323361,0.26029382,67624.0,67623.0,0.15164487]
[1718257323779,0.26029382,67624.0,67623.0,0.028946]
[1718257324455,0.26029382,67624.0,67623.0,0.014946]
[1718257324662,0.26029382,67624.0,67623.0,0.000946]
[1718257324875,0.26029382,67624.0,67623.0,0.014946]
[1718257325106,0.23655256,67624.0,67623.0,0.017946]
[1718257325317,0.23655256,67624.0,67623.0,0.003946]
[1718257325729,0.23655256,67624.0,67623.0,0.008946]
[1718257325933,0.23655256,67624.0,67623.0,0.005946]
[1718257327409,0.23655256,67624.0,67623.0,0.009946]
[1718257327574,0.23655256,67624.0,67623.0,0.005946]
[1718257327933,0.23655256,67624.0,67623.0,0.008946]
[1718257328515,0.25655256,67624.0,67623.0,0.008946]
[1718257329707,0.28229382,67624.0,67623.0,0.003946]
[1718257329934,0.28229382,67624.0,67623.0,0.007946]
[1718257330358,0.28229382,67624.0,67623.0,0.004946]
[1718257330622,0.28229382,67624.0,67623.0,0.000946]
[1718257330850,0.28429382,67624.0,67623.0,0.000946]
[1718257331065,0.28729382,67624.0,67623.0,0.000946]
[1718257331452,0.28929382,67624.0,67623.0,0.000946]
[1718257332496,0.28629382,67624.0,67623.0,0.000946]
[1718257332803,0.28829382,67624.0,67623.0,0.000946]
[1718257336367,0.43261375,67624.0,67623.0,0.000946]
[1718257340899,0.42228004,67624.0,67623.0,0.000946]
[1718257342164,0.39653878,67624.0,67623.0,0.000946]
[1718257347255,0.70337817,67624.0,67623.0,0.000946]
[1718257350945,0.72069936,67624.0,67623.0,0.000946]
[1718257351145,0.68337722,67624.0,67623.0,0.000946]
[1718257353154,0.32545729,67624.0,67623.0,0.000946]
[1718257353355,0.01861885,67624.0,67623.0,0.000946]
[1718257353772,0.01861885,67624.0,67623.0,0.142146]
[1718257354180,0.01261885,67624.0,67623.0,0.142146]
[1718257354598,0.01461885,67624.0,67623.0,0.142146]
[1718257354805,0.01261885,67624.0,67623.0,0.142146]
[1718257355210,0.01261885,67624.0,67623.0,0.156146]
[1718257355636,0.08401885,67624.0,67623.0,0.014946]
[1718257355839,0.10924674,67624.0,67623.0,0.014946]
[1718257356248,0.11124674,67624.0,67623.0,0.014946]
[1718257356442,0.01461885,67624.0,67623.0,0.014946]
[1718257356866,0.01261885,67624.0,67623.0,0.014946]
[1718257357159,0.01261885,67624.0,67623.0,0.028946]
[1718257357588,0.01261885,67624.0,67623.0,0.170246]
[1718257361871,0.01347885,67624.0,67623.0,0.170246]
[1718257365198,0.01347885,67624.0,67623.0,0.028946]
[1718257365414,0.08487885,67624.0,67623.0,0.028946]
[1718257369388,0.08487885,67624.0,67623.0,0.110446]
[1718257369389,0.01347885,67624.0,67623.0,0.110446]
[1718257369591,0.01347885,67624.0,67623.0,0.171746]
[1718257377064,0.01347885,67624.0,67623.0,0.028946]
[1718257382589,0.01347885,67624.0,67623.0,0.195446]
[1718257383165,0.01347885,67624.0,67623.0,0.33976593]
[1718257383841,0.01347885,67624.0,67623.0,0.175446]
[1718257386565,0.01347885,67624.0,67623.0,0.110946]
[1718257386761,0.01347885,67624.0,67623.0,0.028946]
[1718257390742,0.01347885,67624.0,67623.0,0.108246]
[1718257391110,0.01347885,67624.0,67623.0,0.171446]
[1718257391515,0.01347885,67624.0,67623.0,0.191446]
[1718257391729,0.01347885,67624.0,67623.0,0.171446]
[1718257393191,0.01347885,67624.0,67623.0,0.191446]
[1718257394630,0.01347885,67624.0,67623.0,0.171446]
[1718257396109,0.01347885,67624.0,67623.0,0.189646]
[1718257396353,0.01347885,67624.0,67623.0,0.18957803]
[1718257398387,0.01347885,67624.0,67623.0,0.23354802]
[1718257399364,0.01347885,67624.0,67623.0,0.23358467]
[1718257399741,0.01347885,67624.0,67623.0,0.21358467]
[1718257400553,0.01347885,67624.0,67623.0,0.23358467]
[1718257403307,0.01347885,67624.0,67623.0,0.18957803]
[1718257403524,0.01347885,67624.0,67623.0,0.33389796]
[1718257403719,0.01347885,67624.0,67623.0,0.40529796]
[1718257403992,0.01263883,67624.0,67623.0,0.47125295]
[1718257404352,0.01263883,67624.0,67623.0,0.65307139]
[1718257404821,0.01263883,67624.0,67623.0,0.40529796]
[1718257404954,0.01263883,67624.0,67623.0,0.65259098]
[1718257407208,0.01263883,67624.0,67623.0,0.56119098]
[1718257407434,0.01263883,67624.0,67623.0,0.35790739]
[1718257408624,0.01263883,67624.0,67623.0,0.37790739]
[1718257409045,0.01263883,67624.0,67623.0,0.33389796]
[1718257409457,0.01263883,67624.0,67623.0,0.02887803]
[1718257410294,0.01263883,67624.0,67623.0,0.04887803]
[1718257411508,0.01263883,67624.0,67623.0,0.02887803]
[1718257411717,0.01263883,67624.0,67623.0,0.07288196]
[1718257412126,0.01263883,67624.0,67623.0,0.09288196]
[1718257412690,0.01263883,67624.0,67623.0,0.04887803]
[1718257415035,0.01263883,67624.0,67623.0,0.09288196]
[1718257415522,0.01263883,67624.0,67623.0,0.04887803]
[1718257415716,0.01263883,67624.0,67623.0,0.2308306]
[1718257419504,0.01263883,67624.0,67623.0,0.31883847]
[1718257422069,0.01263883,67624.0,67623.0,0.2308306]
[1718257422503,0.01263883,67624.0,67623.0,0.34086739]
[1718257423860,0.01263883,67624.0,67623.0,0.3371551]
[1718257424269,0.01263883,67624.0,67623.0,0.04887803]
[1718257424438,0.01263883,67624.0,67623.0,0.15889391]
[1718257424634,0.01263883,67624.0,67623.0,0.33717263]
[1718257425452,0.01263883,67624.0,67623.0,0.31717263]
[1718257425750,0.01263883,67624.0,67623.0,0.20715675]
[1718257426051,0.01263883,67624.0,67623.0,0.04887803]
[1718257426261,0.01263883,67624.0,67623.0,0.02887803]
[1718257426488,0.01263883,67624.0,67623.0,0.11487394]
[1718257426619,0.01263883,67624.0,67623.0,0.09487394]
[1718257427141,0.01263883,67624.0,67623.0,0.02887803]
[1718257427524,0.01263883,67624.0,67623.0,0.04690713]
[1718257427930,0.01263883,67624.0,67623.0,0.29548078]
[1718257428353,0.01263883,67624.0,67623.0,0.24948487]
[1718257428552,0.01263883,67624.0,67623.0,0.22948487]
[1718257428969,0.01263883,67624.0,67623.0,0.29548133]
[1718257429382,0.01263883,67624.0,67623.0,0.11290359]
[1718257429583,0.01263883,67624.0,67623.0,0.13290359]
[1718257430110,0.01263883,67624.0,67623.0,0.31490048]
[1718257430536,0.01263883,67624.0,67623.0,0.13290359]
[1718257431835,0.01263883,67624.0,67623.0,0.2941168]
[1718257431992,0.01263883,67624.0,67623.0,0.22812034]
[1718257433195,0.01263883,67624.0,67623.0,0.11290311]
[1718257434151,0.01263883,67624.0,67623.0,0.22763387]
[1718257434359,0.01263883,67624.0,67623.0,0.31562842]
[1718257434602,0.01263883,67624.0,67623.0,0.29361739]
[1718257434811,0.01263883,67624.0,67623.0,0.11289065]
[1718257435440,0.01263883,67624.0,67623.0,0.29477711]
[1718257435863,0.01263883,67624.0,67623.0,0.294777]
[1718257436003,0.01263883,67624.0,67623.0,0.11289054]
[1718257436434,0.01263883,67624.0,67623.0,0.13289054]
[1718257436647,0.01263883,67624.0,67623.0,0.31475647]
[1718257436857,0.01263883,67624.0,67623.0,0.24877306]
[1718257437069,0.01263883,67624.0,67623.0,0.33676761]
[1718257439194,0.01263883,67624.0,67623.0,0.24877306]
[1718257440088,0.01263883,67624.0,67623.0,0.23074396]
[1718257443399,0.01263883,67624.0,67623.0,0.24826064]
[1718257443628,0.01263883,67624.0,67623.0,0.39258057]
[1718257443840,0.01263883,67624.0,67623.0,0.47278057]
[1718257445163,0.01263883,67624.0,67623.0,0.29091464]
[1718257445368,0.01263883,67624.0,67623.0,0.47032163]
[1718257445575,0.01263883,67624.0,67623.0,0.47037185]
[1718257446683,0.01263883,67624.0,67623.0,0.72647185]
[1718257446900,0.01263883,67624.0,67623.0,0.74947185]
[1718257447554,0.01263883,67624.0,67623.0,0.78845382]
[1718257448012,0.01263883,67624.0,67623.0,0.77445382]
[1718257448229,0.01263883,67624.0,67623.0,0.75085832]
[1718257448431,0.01263883,67624.0,67623.0,0.73987635]
[1718257448746,0.01263883,67624.0,67623.0,0.72587635]
[1718257449163,0.01263883,67624.0,67623.0,0.73987635]
[1718257449564,0.01263883,67624.0,67623.0,0.78987635]
[1718257451196,0.01263883,67624.0,67623.0,0.92157675]
[1718257451397,0.01263883,67624.0,67623.0,0.78987635]
[1718257451640,0.01263883,67624.0,67623.0,0.83987635]
[1718257451860,0.01263883,67624.0,67623.0,0.97157675]
[1718257452068,0.01263883,67624.0,67623.0,0.83987635]
[1718257452421,0.01263883,67624.0,67623.0,0.97154839]
[1718257452829,0.01263883,67624.0,67623.0,0.83987635]
[1718257453031,0.01263883,67624.0,67623.0,0.97155276]
[1718257453450,0.01263883,67624.0,67623.0,0.83987635]
[1718257453656,0.01263883,67624.0,67623.0,0.82235967]
[1718257455669,0.01263883,67624.0,67623.0,0.83973986]
[1718257457450,0.01263883,67624.0,67623.0,0.8664543]
[1718257463590,0.01263883,67624.0,67623.0,0.86651654]
[1718257465545,0.01263883,67624.0,67623.0,1.02221654]
[1718257465931,0.01263883,67624.0,67623.0,1.00483635]
[1718257466522,0.01263883,67624.0,67623.0,1.0047024]
[1718257467130,0.01419262,67624.0,67623.0,1.0047024]
[1718257469055,0.01419262,67624.0,67623.0,1.02224984]
[1718257469460,0.01419262,67624.0,67623.0,1.06121118]
[1718257473940,0.01419262,67624.0,67623.0,1.18387539]
[1718257474148,0.01419262,67624.0,67623.0,1.31538097]
[1718257474544,0.01419262,67624.0,67623.0,1.18387539]
[1718257475397,2.05859865,67630.0,67629.0,0.5216]
[1718257475632,2.04354346,67630.0,67629.0,1.25182248]
[1718257475856,2.04354346,67630.0,67629.0,1.12033548]
[1718257476503,2.04354346,67630.0,67629.0,1.14992548]
[1718257477382,2.04354346,67630.0,67629.0,1.16392548]
[1718257477608,1.99067346,67630.0,67629.0,1.16392548]
[1718257478073,1.99067346,67630.0,67629.0,1.17792548]
[1718257478766,1.99067346,67630.0,67629.0,1.16392548]
[1718257479012,1.99652429,67630.0,67629.0,1.16392548]
[1718257479227,1.99652429,67630.0,67629.0,1.17792548]
[1718257479685,1.99652429,67630.0,67629.0,1.16392548]
[1718257480115,1.99652429,67630.0,67629.0,1.16484319]
[1718257480585,1.99652429,67630.0,67629.0,1.15084319]
[1718257480798,1.99652429,67630.0,67629.0,1.16484319]
[1718257481013,1.99652429,67630.0,67629.0,1.13684319]
[1718257482063,1.99652429,67630.0,67629.0,1.15084319]
[1718257483093,1.95847933,67630.0,67629.0,1.15084319]
[1718257483303,1.95687989,67630.0,67629.0,1.15084319]
[1718257483531,1.95687989,67630.0,67629.0,1.22302467]
[1718257483761,1.95687989,67630.0,67629.0,1.27302467]
[1718257483762,0.92956461,67630.0,67629.0,1.27302467]
[1718257484233,0.78038226,67630.0,67629.0,1.27302467]
[1718257484437,0.78038226,67630.0,67629.0,1.68413416]
[1718257485029,0.77292226,67630.0,67629.0,1.68413416]
[1718257485228,0.73024648,67630.0,67629.0,1.68413416]
[1718257485657,0.73024648,67630.0,67629.0,1.67013416]
[1718257485861,0.73024648,67630.0,67629.0,1.65613416]
[1718257486075,0.73024648,67630.0,67629.0,1.62013416]
[1718257486283,0.73024648,67630.0,67629.0,1.56273416]
[1718257486486,0.73024648,67630.0,67629.0,1.81401887]
[1718257486686,0.73024648,67630.0,67629.0,1.80001887]
[1718257486921,0.73024648,67630.0,67629.0,1.63413416]
[1718257487421,0.73024648,67630.0,67629.0,1.62013416]
[1718257487627,0.73024648,67630.0,67629.0,1.60613416]
[1718257487834,0.73024648,67630.0,67629.0,1.62013416]
[1718257488032,0.73110648,67630.0,67629.0,1.62013416]
[1718257488263,0.69608648,67630.0,67629.0,1.62013416]
[1718257488872,0.69608648,67630.0,67629.0,1.63413416]
[1718257489058,0.69608648,67630.0,67629.0,1.62013416]
[1718257489480,0.69608648,67630.0,67629.0,1.63243416]
[1718257490048,0.69608648,67630.0,67629.0,1.61843416]
[1718257490763,0.69608648,67630.0,67629.0,1.63243416]
[1718257493754,0.69608648,67630.0,67629.0,1.33253416]
[1718257493875,0.69608648,67630.0,67629.0,1.29357282]
[1718257494698,0.69608648,67630.0,67629.0,1.31122953]
[1718257494940,0.69608648,67630.0,67629.0,0.91412004]
[1718257497503,0.69608648,67630.0,67629.0,1.06982004]
[1718257497938,0.69608648,67630.0,67629.0,1.21542004]
[1718257498161,0.69608648,67630.0,67629.0,1.21990342]
[1718257498162,0.67378549,67630.0,67629.0,1.21990342]
[1718257498382,0.67378549,67630.0,67629.0,1.25884028]
[1718257499957,0.67378549,67630.0,67629.0,1.45289114]
[1718257500412,0.49811549,67630.0,67629.0,1.45289114]
[1718257500666,0.49811549,67630.0,67629.0,1.25884028]
[1718257500667,0.4759337,67630.0,67629.0,1.25884028]
[1718257500879,0.46522342,67630.0,67629.0,1.25884028]
[1718257501294,0.00856,67631.0,67630.0,0.39499]
[1718257501498,0.1433,67648.0,67643.0,0.22]
[1718257501701,0.02448919,67644.0,67643.0,0.84335671]
[1718257501904,0.01958685,67644.0,67643.0,0.84333099]
[1718257502302,0.01958685,67644.0,67643.0,0.90232368]
[1718257503636,0.01958685,67644.0,67643.0,0.88821677]
[1718257504291,0.01958685,67644.0,67643.0,0.91621677]
[1718257504536,0.01958685,67644.0,67643.0,0.95513474]
[1718257504756,0.01958685,67644.0,67643.0,0.91621677]
[1718257504966,0.01958685,67644.0,67643.0,0.95513683]
[1718257505196,0.01958685,67644.0,67643.0,1.16996983]
[1718257505404,0.00850685,67644.0,67643.0,1.16996983]
[1718257505818,0.00850685,67644.0,67643.0,1.17000986]
[1718257506218,0.0759,67651.0,67649.0,0.22]
[1718257506437,0.0607,67653.0,67649.0,0.8877988]
[1718257506636,0.0607,67653.0,67649.0,0.7877988]
[1718257507167,0.0607,67653.0,67649.0,0.78779735]
[1718257507596,0.0607,67653.0,67649.0,0.80179735]
[1718257507807,0.0607,67653.0,67649.0,0.81579735]
[1718257509047,0.0607,67653.0,67649.0,0.81581236]
[1718257509380,0.0607,67653.0,67649.0,0.91581236]
[1718257510117,0.0607,67653.0,67649.0,0.92526644]
[1718257510381,0.0607,67653.0,67649.0,0.74441236]
[1718257510555,0.08037846,67650.0,67649.0,0.81581236]
[1718257510925,0.08037846,67650.0,67649.0,0.90338265]
[1718257511130,0.08037846,67650.0,67649.0,0.81581236]
[1718257512194,0.08037846,67650.0,67649.0,0.92526644]
[1718257512704,0.08037846,67650.0,67649.0,0.92528478]
[1718257512995,0.08037846,67650.0,67649.0,0.9158307]
[1718257513158,0.08037846,67650.0,67649.0,0.8158307]
[1718257513360,0.08037846,67650.0,67649.0,0.9158307]
[1718257513765,0.08037846,67650.0,67649.0,0.8158307]
[1718257515030,0.08037846,67650.0,67649.0,0.81515335]
[1718257515196,0.08037846,67650.0,67649.0,0.76515335]
[1718257515402,0.14337846,67650.0,67649.0,0.69375335]
[1718257515624,0.14337846,67650.0,67649.0,0.69333268]
[1718257516113,0.14337846,67650.0,67649.0,0.79858387]
[1718257516636,0.14337846,67650.0,67649.0,0.79858339]
[1718257517205,0.14337846,67650.0,67649.0,0.71091965]
[1718257517611,0.14337846,67650.0,67649.0,0.20969134]
[1718257517903,0.14825587,67650.0,67649.0,0.20969134]
[1718257518099,0.15327561,67650.0,67649.0,0.15063371]
[1718257518305,0.15327561,67650.0,67649.0,0.028]
[1718257518530,0.15327561,67650.0,67649.0,0.15066118]
[1718257519309,0.15373361,67650.0,67649.0,0.15066118]
[1718257519900,0.15373361,67650.0,67649.0,0.028]
[1718257521787,0.15459361,67650.0,67649.0,0.028946]
[1718257524297,0.15413561,67650.0,67649.0,0.028946]
[1718257524502,0.15413561,67650.0,67649.0,0.29591922]
[1718257525232,0.14423846,67650.0,67649.0,0.39591922]
[1718257525442,0.15404435,67650.0,67649.0,0.39591922]
[1718257525732,0.15404435,67650.0,67649.0,0.41546122]
[1718257526200,0.14423846,67650.0,67649.0,0.39591922]
[1718257526583,0.15404435,67650.0,67649.0,0.39591922]
[1718257526782,0.14423846,67650.0,67649.0,0.39591922]
[1718257526986,0.15404435,67650.0,67649.0,0.39591922]
[1718257527536,0.15404435,67650.0,67649.0,0.43977396]
[1718257527741,0.15404435,67650.0,67649.0,0.43976056]
[1718257527890,0.14423846,67650.0,67649.0,0.43976056]
[1718257529271,0.14423846,67650.0,67649.0,0.39591922]
[1718257529615,0.14423846,67650.0,67649.0,0.43976056]
[1718257530048,0.14423846,67650.0,67649.0,0.39591922]
[1718257530250,0.14423846,67650.0,67649.0,0.43976056]
[1718257530947,0.14423846,67650.0,67649.0,0.39591922]
[1718257531279,0.14423846,67650.0,67649.0,0.43976056]
[1718257531493,0.14423846,67650.0,67649.0,0.39591262]
[1718257532098,0.14469646,67650.0,67649.0,0.25159269]
[1718257532352,0.15452549,67650.0,67649.0,0.25159269]
[1718257534705,0.15452549,67650.0,67649.0,0.25159917]
[1718257536363,0.15406749,67650.0,67649.0,0.25159917]
[1718257540832,0.01086749,67650.0,67649.0,0.44549843]
[1718257541034,0.01086749,67650.0,67649.0,0.56020039]
[1718257541254,0.00103846,67650.0,67649.0,0.86084684]
[1718257541460,0.00103846,67650.0,67649.0,0.76084684]
[1718257541863,0.00103846,67650.0,67649.0,0.74684684]
[1718257542636,0.00103846,67650.0,67649.0,0.73284684]
[1718257542852,0.00103846,67650.0,67649.0,0.74684684]
[1718257542999,0.00103846,67650.0,67649.0,0.76084684]
[1718257543201,0.00103846,67650.0,67649.0,0.86084684]
[1718257543924,0.00103846,67650.0,67649.0,0.76084684]
[1718257544123,0.00103846,67650.0,67649.0,0.93684684]
[1718257544544,0.00103846,67650.0,67649.0,1.22844684]
[1718257544886,0.00103846,67650.0,67649.0,1.21444684]
[1718257545091,0.00103846,67650.0,67649.0,1.22844684]
[1718257545297,0.00103846,67650.0,67649.0,1.35999741]
[1718257545515,0.00103846,67650.0,67649.0,1.34599741]
[1718257545729,0.00103846,67650.0,67649.0,1.35999741]
[1718257545923,0.00103846,67650.0,67649.0,1.34599741]
[1718257546165,0.00103846,67650.0,67649.0,1.35999741]
[1718257546386,0.00103846,67650.0,67649.0,1.22844684]
[1718257550522,0.00103846,67650.0,67649.0,1.05701089]
[1718257550753,0.00103846,67650.0,67649.0,1.22841089]
[1718257551266,0.00103846,67650.0,67649.0,0.90131089]
[1718257551515,0.00103846,67650.0,67649.0,0.83221887]
[1718257552191,0.00103846,67650.0,67649.0,0.8704092]
[1718257552415,0.00103846,67650.0,67649.0,1.0418092]
[1718257552609,0.00103846,67650.0,67649.0,0.93221887]
[1718257552851,0.00103846,67650.0,67649.0,0.5995388]
[1718257553703,0.00103846,67650.0,67649.0,0.6268117]
[1718257554333,0.00103846,67650.0,67649.0,0.6277577]
[1718257555424,0.00103846,67650.0,67649.0,0.6900577]
[1718257555638,0.00103846,67650.0,67649.0,0.79960279]
[1718257555840,0.00103846,67650.0,67649.0,0.6900577]
[1718257558004,0.00103846,67650.0,67649.0,0.7715577]
[1718257558906,0.00103846,67650.0,67649.0,0.81643883]
[1718257560387,0.00103846,67650.0,67649.0,0.83442922]
[1718257562855,0.00103846,67650.0,67649.0,0.95704705]
[1718257564509,0.00103846,67650.0,67649.0,0.81324705]
[1718257566881,0.00103846,67650.0,67649.0,0.71324705]
[1718257567490,0.00103846,67650.0,67649.0,0.81324705]
[1718257567874,0.00103846,67650.0,67649.0,0.9360972]
[1718257569572,0.00103846,67650.0,67649.0,0.9952262]
[1718257570182,0.00103846,67650.0,67649.0,0.8395262]
[1718257570469,0.00103846,67650.0,67649.0,0.72153581]
[1718257570620,0.00103846,67650.0,67649.0,0.60013581]
[1718257570823,0.00103846,67650.0,67649.0,0.61240681]
[1718257571230,0.00103846,67650.0,67649.0,0.54100681]
[1718257571434,0.00103846,67650.0,67649.0,0.61240681]
[1718257572043,0.00103846,67650.0,67649.0,0.48955666]
[1718257572241,0.00103846,67650.0,67649.0,0.61628071]
[1718257573223,0.00103846,67650.0,67649.0,0.72575369]
[1718257573849,0.00103846,67650.0,67649.0,0.72485271]
[1718257574250,0.00103846,67650.0,67649.0,0.70185271]
[1718257574654,0.00103846,67650.0,67649.0,0.70148134]
[1718257575112,0.00103846,67650.0,67649.0,0.67420844]
[1718257575637,0.00103846,67650.0,67649.0,0.72147854]
[1718257575838,0.00103846,67650.0,67649.0,1.0082385]
[1718257576009,0.00103846,67650.0,67649.0,1.00719811]
[1718257578423,0.00103846,67650.0,67649.0,0.86559811]
[1718257579699,0.00103846,67650.0,67649.0,0.79419811]
[1718257579852,0.00103846,67650.0,67649.0,0.62203815]
[1718257580057,0.00103846,67650.0,67649.0,0.62203181]
[1718257580272,0.00103846,67650.0,67649.0,0.79343181]
[1718257580472,0.00103846,67650.0,67649.0,0.73038449]
[1718257580661,0.00103846,67650.0,67649.0,0.80178449]
[1718257582369,0.00103846,67650.0,67649.0,0.67043181]
[1718257582771,0.00103846,67650.0,67649.0,0.6704293]
[1718257584166,0.00103846,67650.0,67649.0,0.72478771]
[1718257584336,0.00103846,67650.0,67649.0,1.01746771]
[1718257585370,0.00856,67655.0,67649.0,1.01746771]
[1718257585371,0.00856,67655.0,67654.0,0.7904]
[1718257585529,0.00856,67655.0,67654.0,1.3319313]
[1718257585751,0.00856,67655.0,67654.0,1.29066964]
[1718257586140,0.00856,67655.0,67654.0,1.4876313]
[1718257586390,0.00856,67655.0,67654.0,1.5172113]
[1718257586767,0.00856,67655.0,67654.0,1.55771372]
[1718257586985,0.00856,67661.0,67654.0,1.55771372]
[1718257586986,0.00215645,67661.0,67660.0,0.35]
[1718257587185,0.00215645,67661.0,67660.0,1.35601341]
[1718257587804,0.00215645,67661.0,67660.0,1.39651583]
[1718257588001,0.00215645,67661.0,67660.0,1.2025172]
[1718257588933,0.00215645,67661.0,67660.0,1.16201478]
[1718257589342,0.00215645,67661.0,67660.0,1.2025172]
[1718257589563,0.00315645,67661.0,67660.0,1.2165172]
[1718257590315,0.00415645,67661.0,67660.0,1.2305172]
[1718257590557,0.00415645,67661.0,67660.0,1.16676275]
[1718257590732,0.00415645,67661.0,67660.0,1.23816275]
[1718257590935,0.00415645,67661.0,67660.0,1.18991478]
[1718257592471,0.00415645,67661.0,67660.0,0.67291478]
[1718257592720,0.00415645,67661.0,67660.0,0.66412094]
[1718257594633,0.00415645,67661.0,67660.0,0.78217798]
[1718257594829,0.00415645,67661.0,67660.0,0.84307798]
[1718257595154,0.00415645,67661.0,67660.0,0.88197725]
[1718257595405,0.00415645,67661.0,67660.0,0.78197725]
[1718257596052,0.00415645,67661.0,67660.0,0.65719377]